fUSD/lending_fUSD_20251221
["ID","MTS","AMOUNT","RATE_DAILY","PERIOD"]
[399407868,1766328656510,-500.0,0.000349,2]
[399407869,1766328656520,-500.0,0.000349,2]
[399407870,1766328656529,-500.0,0.000349,2]
[399407871,1766328656539,-500.0,0.000349,2]
[399407872,1766328656548,-500.0,0.000349,2]
[399407873,1766328656558,-500.0,0.000349,2]
[399407874,1766328656567,-500.0,0.000349,2]
[399407875,1766328656576,-500.0,0.000349,2]
[399407876,1766328656585,-500.0,0.000349,2]
[399407877,1766328656595,-500.0,0.000349,2]
[399407878,1766328656604,-500.0,0.000349,2]
[399407879,1766328656613,-500.0,0.000349,2]
[399407880,1766328656623,-500.0,0.000349,2]
[399407881,1766328656632,-500.0,0.000349,2]
[399407882,1766328656642,-500.0,0.000349,2]
[399407883,1766328656652,-500.0,0.000349,2]
[399407884,1766328656662,-500.0,0.000349,2]
[399407885,1766328656671,-500.0,0.000349,2]
[399407886,1766328656680,-788.0,0.000349,2]
[399407887,1766328656690,-500.0,0.000349,2]
[399407888,1766328656699,-500.0,0.000349,2]
[399407889,1766328656708,-500.0,0.000349,2]
[399407890,1766328656718,-500.0,0.000349,2]
[399407891,1766328656727,-500.0,0.000349,2]
[399407892,1766328656736,-500.0,0.000349,2]
[399407893,1766328656745,-500.0,0.000349,2]
[399407894,1766328656754,-500.0,0.000349,2]
[399407895,1766328656763,-500.0,0.000349,2]
[399407896,1766328656773,-500.0,0.000349,2]
[399407897,1766328656784,-500.0,0.000349,2]
[399407898,1766328656793,-500.0,0.000349,2]
[399407899,1766328656803,-500.0,0.000349,2]
[399407900,1766328656812,-500.0,0.000349,2]
[399407901,1766328656822,-500.0,0.000349,2]
[399407902,1766328656831,-788.0,0.000349,2]
[399407903,1766328656840,-500.0,0.000349,2]
[399407904,1766328656850,-500.0,0.000349,2]
[399407905,1766328656860,-500.0,0.000349,2]
[399407906,1766328656870,-500.0,0.000349,2]
[399407907,1766328656879,-500.0,0.000349,2]
[399407908,1766328656888,-500.0,0.000349,2]
[399407909,1766328656898,-500.0,0.000349,2]
[399407910,1766328656908,-500.0,0.000349,2]
[399407911,1766328656919,-500.0,0.000349,2]
[399407912,1766328656928,-500.0,0.000349,2]
[399407913,1766328656937,-500.0,0.000349,2]
[399407914,1766328656947,-500.0,0.000349,2]
[399407915,1766328656956,-500.0,0.000349,2]
[399407916,1766328656964,-500.0,0.000349,2]
[399407917,1766328656973,-500.0,0.000349,2]
[399407918,1766328656982,-500.0,0.000349,2]
[399407919,1766328656991,-500.0,0.000349,2]
[399407920,1766328657000,-500.0,0.000349,2]
[399407921,1766328657009,-500.0,0.000349,2]
[399407922,1766328657018,-500.0,0.000349,2]
[399407923,1766328657027,-500.0,0.000349,2]
[399407924,1766328657035,-500.0,0.000349,2]
[399407925,1766328657044,-500.0,0.000349,2]
[399407926,1766328657053,-500.0,0.000349,2]
[399407927,1766328657062,-500.0,0.000349,2]
[399407928,1766328657071,-500.0,0.000349,2]
[399407929,1766328657082,-500.0,0.000349,2]
[399407930,1766328657092,-500.0,0.000349,2]
[399407931,1766328657101,-500.0,0.000349,2]
[399407932,1766328657111,-500.0,0.000349,2]
[399407933,1766328657120,-500.0,0.000349,2]
[399407934,1766328657128,-500.0,0.000349,2]
[399407935,1766328657138,-500.0,0.000349,2]
[399407936,1766328657147,-500.0,0.000349,2]
[399407937,1766328657155,-500.0,0.000349,2]
[399407938,1766328657164,-500.0,0.000349,2]
[399407939,1766328657173,-500.0,0.000349,2]
[399407940,1766328657182,-500.0,0.000349,2]
[399407941,1766328657191,-500.0,0.000349,2]
[399407942,1766328657200,-500.0,0.000349,2]
[399407943,1766328657210,-500.0,0.000349,2]
[399407944,1766328657219,-500.0,0.000349,2]
[399407945,1766328657233,-500.0,0.000349,2]
[399407946,1766328657243,-500.0,0.000349,2]
[399407947,1766328657252,-500.0,0.000349,2]
[399407948,1766328657261,-500.0,0.000349,2]
[399407949,1766328657272,-500.0,0.000349,2]
[399407950,1766328657281,-500.0,0.000349,2]
[399407951,1766328657290,-500.0,0.000349,2]
[399407952,1766328657299,-500.0,0.000349,2]
[399407953,1766328657310,-500.0,0.000349,2]
[399407954,1766328657319,-500.0,0.000349,2]
[399407955,1766328657328,-500.0,0.000349,2]
[399407956,1766328657338,-500.0,0.000349,2]
[399407957,1766328657347,-500.0,0.000349,2]
[399407958,1766328657356,-500.0,0.000349,2]
[399407959,1766328657365,-500.0,0.000349,2]
[399407960,1766328657374,-500.0,0.000349,2]
[399407961,1766328657383,-500.0,0.000349,2]
[399407962,1766328657395,-500.0,0.000349,2]
[399407963,1766328657405,-500.0,0.000349,2]
[399407964,1766328657413,-500.0,0.000349,2]
[399407965,1766328657422,-500.0,0.000349,2]
[399407966,1766328657431,-500.0,0.000349,2]
[399407967,1766328657441,-500.0,0.000349,2]
[399407968,1766328657450,-500.0,0.000349,2]
[399407969,1766328657460,-500.0,0.000349,2]
[399407970,1766328657469,-500.0,0.000349,2]
[399407971,1766328657478,-500.0,0.000349,2]
[399407972,1766328657488,-500.0,0.000349,2]
[399407973,1766328657498,-500.0,0.000349,2]
[399407974,1766328657507,-500.0,0.000349,2]
[399407975,1766328657518,-500.0,0.000349,2]
[399407976,1766328657527,-500.0,0.000349,2]
[399407977,1766328657537,-500.0,0.000349,2]
[399407978,1766328657546,-500.0,0.000349,2]
[399407979,1766328657555,-500.0,0.000349,2]
[399407980,1766328657565,-500.0,0.000349,2]
[399407981,1766328657574,-500.0,0.000349,2]
[399407982,1766328657583,-500.0,0.000349,2]
[399407983,1766328657592,-500.0,0.000349,2]
[399407984,1766328657601,-500.0,0.000349,2]
[399407985,1766328657611,-500.0,0.000349,2]
[399407986,1766328657621,-500.0,0.000349,2]
[399407987,1766328657630,-500.0,0.000349,2]
[399407988,1766328657639,-500.0,0.000349,2]
[399407989,1766328657648,-500.0,0.000349,2]
[399407990,1766328657657,-500.0,0.000349,2]
[399407991,1766328657666,-500.0,0.000349,2]
[399407992,1766328657675,-500.0,0.000349,2]
[399407993,1766328657684,-500.0,0.000349,2]
[399407994,1766328657693,-500.0,0.000349,2]
[399407995,1766328657702,-500.0,0.000349,2]
[399407996,1766328657711,-500.0,0.000349,2]
[399407997,1766328657720,-500.0,0.000349,2]
[399407998,1766328657729,-500.0,0.000349,2]
[399407999,1766328657738,-500.0,0.000349,2]
[399408000,1766328657748,-500.0,0.000349,2]
[399408001,1766328657757,-500.0,0.000349,2]
[399408002,1766328657766,-500.0,0.000349,2]
[399408003,1766328657774,-405.05924856,0.00035,2]
[399408004,1766328657783,-926.45060488,0.0003526,2]
[399408005,1766328657793,-400.0,0.0003557,2]
[399408006,1766328657802,-598.95449494,0.0003557,2]
[399408007,1766328657811,-894.91811465,0.00035599,2]
[399408008,1766328657822,-482.26053294,0.00035609,2]
[399408009,1766328657831,-151.0,0.00035616,14]
[399408010,1766328657840,-200.0,0.00035616,2]
[399408011,1766328657848,-800.0,0.00035616,13]
[399408012,1766328657857,-800.0,0.00035616,13]
[399408013,1766328657867,-800.0,0.00035616,13]
[399408014,1766328657875,-800.0,0.00035616,13]
[399408015,1766328657884,-800.0,0.00035616,13]
[399408016,1766328657893,-800.0,0.00035616,13]
[399408017,1766328657902,-800.0,0.00035616,13]
[399408018,1766328657911,-800.0,0.00035616,13]
[399408019,1766328657919,-200.0,0.00035616,2]
[399408020,1766328657929,-800.0,0.00035616,13]
[399408021,1766328657938,-800.0,0.00035616,13]
[399408022,1766328657947,-800.0,0.00035616,13]
[399408023,1766328657957,-800.0,0.00035616,13]
[399408024,1766328657966,-800.0,0.00035616,13]
[399408025,1766328657974,-800.0,0.00035616,13]
[399408026,1766328657984,-800.0,0.00035616,13]
[399408027,1766328657994,-800.0,0.00035616,13]
[399408028,1766328658004,-200.0,0.00035616,2]
[399408029,1766328658014,-800.0,0.00035616,13]
[399408030,1766328658024,-800.0,0.00035616,13]
[399408031,1766328658034,-800.0,0.00035616,13]
[399408032,1766328658044,-800.0,0.00035616,13]
[399408033,1766328658053,-800.0,0.00035616,13]
[399408034,1766328658062,-800.0,0.00035616,13]
[399408035,1766328658071,-528.11013609,0.00035616,13]
[399408036,1766328658080,-151.0,0.00035616,14]
[399408037,1766328658090,-500.0,0.00035616,5]
[399408038,1766328658100,-500.0,0.00035616,7]
[399408039,1766328658109,-500.0,0.00035616,7]
[399408040,1766328658118,-500.0,0.00035616,7]
[399408041,1766328658127,-500.0,0.00035616,7]
[399408042,1766328658136,-500.0,0.00035616,7]
[399408043,1766328658145,-500.0,0.00035616,7]
[399408044,1766328658154,-500.0,0.00035616,7]
[399408045,1766328658163,-370.47643531,0.00035616,7]
[399408046,1766328658172,-500.0,0.00035616,7]
[399408047,1766328658181,-500.0,0.00035616,7]
[399408048,1766328658191,-500.0,0.00035616,7]
[399408049,1766328658202,-500.0,0.00035616,7]
[399408050,1766328658211,-500.0,0.00035616,7]
[399408051,1766328658224,-500.0,0.00035616,7]
[399408052,1766328658234,-500.0,0.00035616,7]
[399408053,1766328658243,-500.0,0.00035616,7]
[399408054,1766328658251,-500.0,0.00035616,7]
[399408055,1766328658262,-500.0,0.00035616,7]
[399408056,1766328658271,-500.0,0.00035616,7]
[399408057,1766328658279,-500.0,0.00035616,7]
[399408058,1766328658288,-500.0,0.00035616,7]
[399408059,1766328658299,-500.0,0.00035616,7]
[399408060,1766328658308,-500.0,0.00035616,7]
[399408061,1766328658318,-500.0,0.00035616,7]
[399408062,1766328658327,-500.0,0.00035616,7]
[399408063,1766328658335,-500.0,0.00035616,7]
[399408064,1766328658344,-500.0,0.00035616,7]
[399408065,1766328658353,-500.0,0.00035616,7]
[399408066,1766328658362,-500.0,0.00035616,7]
[399408067,1766328658370,-500.0,0.00035616,7]
[399408068,1766328658379,-500.0,0.00035616,7]
[399408069,1766328658388,-500.0,0.00035616,7]
[399408070,1766328658397,-430.05293726,0.00035616,7]
[399408071,1766328658406,-500.0,0.00035616,7]
[399408072,1766328658415,-500.0,0.00035616,7]
[399408073,1766328658424,-200.0,0.00035616,7]
[399408074,1766328658433,-500.0,0.00035616,7]
[399408075,1766328658442,-500.0,0.00035616,7]
[399408076,1766328658451,-500.0,0.00035616,7]
[399408077,1766328658460,-300.0,0.00035616,7]
[399408078,1766328658469,-398.86540225,0.00035726,2]
[399408079,1766328658478,-447.3913417,0.00035726,2]
[399408080,1766328658487,-3710.0,0.00035847,4]
[399408081,1766328658495,-1000.0,0.0003589,5]
[399408082,1766328658508,-200.0,0.00035972,2]
[399408083,1766328658516,-200.0,0.00035972,2]
[399408084,1766328658525,-500.0,0.00035999,60]
[399408085,1766328658534,-500.0,0.00035999,60]
[399408086,1766328658543,-100000.0,0.00036,7]
[399408087,1766328658551,-570.75,0.00036,14]
[399408088,1766328658560,-257.69476578,0.00036,2]
[399408089,1766328658569,-152.38883644,0.00036,2]
[399408090,1766328658578,-151.0,0.00036,14]
[399408091,1766328658587,-641.96437318,0.00036164,5]
[399408092,1766328658596,-4144.52,0.000362,14]
[399408093,1766328658604,-199.0,0.00036301,33]
[399408094,1766328658613,-200.0,0.00036332,2]
[399408095,1766328658622,-200.0,0.00036332,2]
[399408096,1766328658632,-300.0,0.000364,2]
[399408097,1766328658642,-979.0,0.000364,2]
[399408098,1766328658651,-779.0,0.000364,2]
[399408099,1766328658660,-859.75,0.00036431,5]
[399408100,1766328658669,-1001.37,0.000365,14]
[399408101,1766328658677,-7525.96,0.000365,2]
[399408102,1766328658686,-151.0,0.000365,14]
[399408103,1766328658695,-1262.0,0.00036593,2]
[399408104,1766328658704,-518.0,0.00036593,2]
[399408105,1766328658713,-2429.0,0.00036593,2]
[399408106,1766328658721,-200.0,0.00036695,2]
[399408107,1766328658730,-200.0,0.00036695,2]
[399408108,1766328658740,-876.56,0.0003671,5]
[399408109,1766328658749,-1599.20048625,0.000368,2]
[399408110,1766328658758,-1941.03516726,0.000368,2]
[399408111,1766328658767,-848.0,0.000368,2]
[399408112,1766328658776,-877.62,0.00036897,5]
[399408113,1766328658785,-199.0,0.00036986,34]
[399408114,1766328658794,-164.48593738,0.00037,2]
[399408115,1766328658803,-200.0,0.00037062,2]
[399408116,1766328658812,-200.0,0.00037062,2]
[399408117,1766328658823,-463.94482134,0.00037095,2]
[399408118,1766328658833,-235.82204188,0.00037225,5]
[399408119,1766328658843,-944.03,0.000374,30]
[399408120,1766328658855,-878.41,0.00037592,5]
[399408121,1766328658863,-3710.0,0.00037597,5]
[399408122,1766328658872,-1009.0,0.000376,7]
[399408123,1766328658881,-500.0,0.00037643,2]
[399408124,1766328658890,-500.0,0.00037644,2]
[399408125,1766328658899,-500.0,0.00037645,2]
[399408126,1766328658907,-500.0,0.00037646,2]
[399408127,1766328658916,-500.0,0.00037647,2]
[399408128,1766328658926,-500.0,0.00037648,2]
[399408129,1766328658935,-500.0,0.00037649,2]
[399408130,1766328658944,-500.0,0.0003765,2]
[399408131,1766328658953,-500.0,0.00037651,2]
[399408132,1766328658962,-500.0,0.00037652,2]
[399408133,1766328658970,-500.0,0.00037653,2]
[399408134,1766328658979,-112.0572331,0.00037654,2]
[399408135,1766328659140,-387.9427669,0.00037654,2]
[399408136,1766328659151,-500.0,0.00037655,2]
[399408137,1766328659160,-500.0,0.00037656,2]
[399408138,1766328659170,-500.0,0.00037657,2]
[399408139,1766328659180,-500.0,0.00037658,2]
[399408140,1766328659190,-500.0,0.00037659,2]
[399408141,1766328659200,-500.0,0.0003766,2]
[399408142,1766328659209,-160.403319,0.00037661,2]
[399408143,1766328659219,-199.0,0.00037671,35]
[399408144,1766328659232,-1776.67165503,0.000377,14]
[399408145,1766328659244,-490.0,0.000377,14]
[399408146,1766328659256,-403.92,0.000377,14]
[399408147,1766328659272,-575.79329,0.000377,14]
[399408148,1766328659284,-766.66,0.000377,14]
[399408149,1766328659302,-443.4506406,0.00027593,2]
[399408150,1766328659426,-212.19346656,0.000169,2]
[399408151,1766328659435,-161.30239929,0.00021166,2]
[399408152,1766328659447,-50.89106724,0.00021166,2]
[399408153,1766328659456,-365.41686995,0.00027593,2]
[399408154,1766328659468,-297.68314574,0.00027593,2]
[399408155,1766328659479,-343.53915486,0.00027593,2]
[399408156,1766328659490,-2844.6039312,0.00027593,2]
[399408157,1766328659732,-508.30625765,0.00027593,2]
[399408158,1766328659742,-3892.55324318,0.00030593,2]
[399408159,1766328659757,-212.19346653,0.00025432,2]
[399408160,1766328659766,-910.44675682,0.00030593,2]
[399408161,1766328659775,-131.47505497,0.000377,14]
[399408162,1766328659784,-152.0,0.00037755,5]
[399408163,1766328659793,-6005.03218406,0.0003783,2]
[399408164,1766328659802,-200.64067696,0.0003788,2]
[399408165,1766328659812,-7525.96,0.000379,2]
[399408166,1766328659821,-500.0,0.00037921,30]
[399408167,1766328659830,-518.77844467,0.00037921,30]
[399408168,1766328659839,-500.0,0.00037921,30]
[399408169,1766328659849,-524.12937331,0.00037921,30]
[399408170,1766328659862,-500.0,0.00037921,30]
[399408171,1766328659871,-500.0,0.00037921,30]
[399408172,1766328659880,-500.0,0.00037921,30]
[399408173,1766328659890,-500.0,0.00037973,2]
[399408174,1766328659899,-1001.37,0.00038,14]
[399408175,1766328659909,-151.0,0.00038,14]
[399408176,1766328659918,-1000.0,0.00038059,7]
[399408177,1766328659928,-1000.0,0.00038074,7]
[399408178,1766328659937,-1000.0,0.00038083,7]
[399408179,1766328659947,-1000.0,0.00038174,7]
[399408180,1766328659957,-1000.0,0.00038177,7]
[399408181,1766328659966,-1000.0,0.00038179,7]
[399408182,1766328659976,-1000.0,0.00038186,7]
[399408183,1766328659986,-1000.0,0.00038194,7]
[399408184,1766328659995,-1000.0,0.00038214,7]
[399408185,1766328660005,-150.0,0.00038239,7]
[399408186,1766328660015,-1000.0,0.00038251,7]
[399408187,1766328660024,-1000.0,0.00038261,7]
[399408188,1766328660033,-1000.0,0.00038263,7]
[399408189,1766328660043,-1000.0,0.00038267,7]
[399408190,1766328660054,-82732.69066058,0.00038304,4]
[399408192,1766328666435,1000.0,0.00010478,2]
[399408196,1766328673234,188.8,0.000356,30]
[399408197,1766328684850,24209.9019,0.00010471,2]
[399408198,1766328686053,165.0,0.000356,120]
[399408200,1766328691030,2500.0,0.00010478,2]
[399408201,1766328700509,340.981756,0.0003561,30]
[399408204,1766328713790,-500.0,0.0001057,2]
[399408205,1766328713833,-500.0,0.0001057,2]
[399408206,1766328713879,-230.22359054,0.0001057,2]
[399408207,1766328713924,-562.89033244,0.0001057,2]
[399408208,1766328713950,-500.0,0.0001057,2]
[399408209,1766328713962,-401.51586143,0.0001057,2]
[399408210,1766328713972,-98.48413857,0.0001057,2]
[399408211,1766328713989,-230.22359054,0.0001057,2]
[399408212,1766328714003,-171.29227089,0.0001057,2]
[399408213,1766328714014,-391.59806155,0.0001057,2]
[399408214,1766328714029,-108.40193845,0.0001057,2]
[399408215,1766328714042,-305.37021559,0.0001057,2]
[399408230,1766328764655,33494.9637,0.00010478,2]
[399408231,1766328779238,1000000.0,0.00010471,2]
[399408233,1766328795017,1000.0,0.00010478,2]
[399408236,1766328813330,1264.1867,0.00010478,2]
[399408242,1766328865614,169.92,0.000356,30]
[399408246,1766328907907,150.0,0.000104,2]
[399408247,1766328913838,30429.5608,0.00010478,2]
[399408252,1766328928981,904160.84500028,0.00010471,2]
[399408253,1766328929018,95839.15499972,0.00010471,2]
[399408256,1766328944446,1000.0,0.00010478,2]
[399408276,1766329057103,152.93,0.000356,30]
[399408283,1766329209087,272.0,0.000356,30]
[399408291,1766329236621,-246.0,0.00011714,2]
[399408292,1766329251044,150.0,0.000356,30]
[399408301,1766329306547,150.15,6.88e-05,2]
[399408303,1766329306762,45.84022413,7.31e-05,2]
[399408304,1766329306793,104.30977587,7.31e-05,2]
[399408305,1766329306973,150.15,7.74e-05,2]
[399408307,1766329307366,150.15,8.17e-05,2]
[399408308,1766329307567,150.15,8.6e-05,2]
[399408309,1766329307784,150.15,9.03e-05,2]
[399408310,1766329307998,150.15,9.46e-05,2]
[399408311,1766329308202,150.15,9.89e-05,2]
[399408312,1766329308412,150.15,0.00010321,2]
[399408316,1766329325389,2665.93081636,0.00035616,30]
[399408319,1766329358810,199.0,0.00034246,30]
[399408320,1766329359047,199.0,0.00034931,31]
[399408321,1766329359283,199.0,0.00035616,32]
[399408323,1766329373253,174.93,0.00010347,2]
[399408327,1766329445763,150.0,0.000356,30]
[399408329,1766329488371,661.0,0.000356,120]
[399408350,1766329650441,150.0,0.000356,30]
[399408356,1766329745464,1000.0,0.00035615,30]
[399408357,1766329745746,1000.0,0.00035599,30]
[399408358,1766329745992,1000.0,0.0003493,30]
[399408368,1766329817059,-150.15,0.00010751,2]
[399408369,1766329817085,-238.0,0.00010751,2]
[399408370,1766329817119,-247.47375439,0.00010858,2]
[399408385,1766329832265,-2.52624561,0.00010858,2]
[399408386,1766329832275,-195.0,0.0001097,2]
[399408387,1766329832285,-300.0,0.00010971,2]
[399408388,1766329832294,-26.92748488,0.00011095,2]
[399408389,1766329832306,-223.07251512,0.00011095,2]
[399408390,1766329832316,-150.15,0.00011181,2]
[399408391,1766329832325,-150.15,0.00011611,2]
[399408392,1766329832334,-300.0,0.00011825,2]
[399408393,1766329832344,-965.4548285,0.00011825,2]
[399408394,1766329832355,-234.5451715,0.00011825,2]
[399408395,1766329832365,-250.0,0.00011826,2]
[399408396,1766329832374,-195.0,0.00011826,2]
[399408397,1766329832383,-192.43508432,0.00011826,2]
[399408398,1766329832395,-107.56491568,0.00011826,2]
[399408399,1766329832408,-195.0,0.00011826,2]
[399408400,1766329832418,-300.0,0.00011826,2]
[399408401,1766329832427,-195.0,0.00011826,2]
[399408402,1766329832437,-26.88567515,0.00011826,2]
[399408403,1766329832448,-273.11432485,0.00011826,2]
[399408404,1766329832458,-150.0,0.00012039,2]
[399408405,1766329832467,-387.12284555,0.0001204,2]
[399408406,1766329832477,-138.0681551,0.0001204,2]
[399408407,1766329832489,-92.15543544,0.0001204,2]
[399408408,1766329832498,-500.0,0.0001204,2]
[399408409,1766329832508,-500.0,0.0001204,2]
[399408410,1766329832517,-500.0,0.0001204,2]
[399408411,1766329832527,-500.0,0.0001204,2]
[399408412,1766329832536,-500.0,0.0001204,2]
[399408413,1766329832545,-474.51701996,0.0001204,2]
[399408414,1766329832559,-500.0,0.0001204,2]
[399408415,1766329832568,-500.0,0.0001204,2]
[399408417,1766329832578,-500.0,0.0001204,2]
[399408419,1766329832587,-500.0,0.0001204,2]
[399408421,1766329832598,-500.0,0.0001204,2]
[399408422,1766329832610,-500.0,0.0001204,2]
[399408424,1766329832620,-374.16326439,0.0001204,2]
[399408426,1766329832630,-500.0,0.0001204,2]
[399408427,1766329832640,-500.0,0.0001204,2]
[399408428,1766329832649,-190.86409021,0.0001204,2]
[399408429,1766329832662,-309.13590979,0.0001204,2]
[399408430,1766329832671,-162.71013668,0.0001204,2]
[399408431,1766329832683,-337.28986332,0.0001204,2]
[399408432,1766329832692,-299.99,0.0001204,2]
[399408433,1766329832702,-462.72013668,0.0001204,2]
[399408434,1766329832715,-413.55879027,0.0001204,2]
[399408436,1766329832727,-2949.99999998,0.0001204,2]
[399408437,1766329832738,-6173.71107307,0.0001204,2]
[399408438,1766329832748,-332.67,0.0001204,2]
[399408439,1766329832758,-9999.99,0.0001204,2]
[399408440,1766329832768,-150.15,0.00012041,2]
[399408441,1766329832778,-9999.99,0.00012041,2]
[399408442,1766329832787,-9999.99,0.00012041,2]
[399408443,1766329832797,-999.99,0.00012041,2]
[399408444,1766329832810,-9999.99,0.00012041,2]
[399408445,1766329832820,-4999.99,0.00012041,2]
[399408446,1766329832829,-9999.99,0.00012041,2]
[399408447,1766329832839,-150.99,0.00012041,2]
[399408448,1766329832848,-12393.88,0.00012041,2]
[399408449,1766329832858,-9999.99,0.00012041,2]
[399408450,1766329832867,-150.99,0.00012041,2]
[399408451,1766329832877,-150.15,0.00012471,2]
[399408452,1766329832887,-999.0,0.00012712,3]
[399408453,1766329832896,-150.15,0.00012901,2]
[399408454,1766329832906,-166.66,0.00013013,2]
[399408455,1766329832916,-255.0,0.00013122,2]
[399408456,1766329832925,-535.80488435,0.00013273,2]
[399408457,1766329832935,-500.0,0.00013273,2]
[399408458,1766329832945,-500.0,0.00013273,2]
[399408459,1766329832955,-500.0,0.00013273,2]
[399408460,1766329832964,-500.0,0.00013273,2]
[399408461,1766329832974,-165.81830667,0.00013273,2]
[399408462,1766329832984,-515.90612576,0.00013273,2]
[399408463,1766329832993,-500.0,0.00013273,2]
[399408464,1766329833003,-150.15,0.00013331,2]
[399408465,1766329833017,-166.66,0.00013443,2]
[399408466,1766329833026,-151.0,0.0001369,2]
[399408467,1766329833036,-151.0,0.0001369,2]
[399408468,1766329833046,-151.0,0.0001369,2]
[399408469,1766329833059,-151.0,0.0001369,2]
[399408470,1766329833069,-151.0,0.0001369,2]
[399408471,1766329833079,-151.0,0.0001369,2]
[399408472,1766329833088,-151.0,0.0001369,2]
[399408473,1766329833098,-151.0,0.0001369,2]
[399408474,1766329833108,-151.0,0.0001369,2]
[399408475,1766329833117,-151.0,0.0001369,2]
[399408476,1766329833127,-151.0,0.0001369,2]
[399408477,1766329833137,-151.0,0.0001369,2]
[399408478,1766329833146,-151.0,0.0001369,2]
[399408479,1766329833157,-151.0,0.0001369,2]
[399408480,1766329833166,-151.0,0.0001369,2]
[399408481,1766329833179,-151.0,0.0001369,2]
[399408482,1766329833199,-151.0,0.0001369,2]
[399408483,1766329833208,-151.0,0.0001369,2]
[399408484,1766329833221,-151.0,0.0001369,2]
[399408485,1766329833230,-151.0,0.0001369,2]
[399408486,1766329833240,-500.0,0.00013698,2]
[399408487,1766329833251,-500.0,0.00013698,2]
[399408488,1766329833260,-500.0,0.00013698,2]
[399408489,1766329833269,-500.0,0.00013698,2]
[399408490,1766329833279,-500.0,0.00013698,2]
[399408491,1766329833288,-500.0,0.00013698,2]
[399408492,1766329833299,-500.0,0.00013698,2]
[399408493,1766329833308,-500.0,0.00013699,2]
[399408494,1766329833317,-500.0,0.00013699,2]
[399408495,1766329833327,-355.44944457,0.00013699,2]
[399408496,1766329833336,-150.15,0.00013761,2]
[399408497,1766329833345,-789.33467407,0.00013821,2]
[399408498,1766329833355,-1000.0,0.00013821,2]
[399408499,1766329833365,-1000.0,0.00013821,2]
[399408500,1766329833375,-1000.0,0.00013821,2]
[399408501,1766329833384,-1000.0,0.00013821,2]
[399408502,1766329833394,-166.66,0.00013873,2]
[399408503,1766329833403,-3240.0,0.00013936,2]
[399408504,1766329833414,-433.0,0.00014302,2]
[399408505,1766329833425,-166.66,0.00014302,2]
[399408506,1766329833434,-1500.0,0.00014368,2]
[399408507,1766329833445,-503.74441146,0.00014368,2]
[399408508,1766329833455,-1500.0,0.00014368,2]
[399408509,1766329833466,-1500.0,0.00014368,2]
[399408510,1766329833476,-151.0,0.00014698,2]
[399408511,1766329833486,-151.0,0.00014708,2]